bitfinex/quotes_ETHUSD_20220105
["timestamp","ask_amount","ask_price","bid_price","bid_amount"]
[1641420386868,30.3404,3556.0,3555.7,0.00511581]
[1641420387068,14.1004,3556.0,3555.7,0.00511581]
[1641420387720,30.3404,3556.0,3555.7,0.00511581]
[1641420387923,5.9504,3556.0,3555.7,0.00511581]
[1641420388320,5.9504,3556.0,3555.9,1.34916262]
[1641420389127,5.6224,3556.0,3555.9,6.34916262]
[1641420389524,4.7443,3556.0,3555.9,6.34916262]
[1641420389724,4.7443,3556.0,3555.9,1.34916262]
[1641420390525,4.7443,3556.0,3555.7,0.01715148]
[1641420390827,0.328,3557.3,3555.8,0.00454738]
[1641420391026,0.328,3557.3,3555.8,2.86646445]
[1641420391276,0.00113685,3556.8,3556.0,2.01298701]
[1641420391678,0.70322,3557.1,3556.1,0.00284211]
[1641420392178,0.0022737,3557.0,3556.2,0.42761818]
[1641420392578,0.70322,3557.1,3556.2,0.42761818]
[1641420392579,0.00170527,3556.9,3556.3,0.00170527]
[1641420392777,1.41665271,3556.7,3556.3,0.00170527]
[1641420394678,1.41665271,3556.7,3556.4,0.00104656]
[1641420398236,0.50883872,3556.6,3556.4,0.00104656]
[1641420398436,1.41665271,3556.7,3556.1,1.144e-05]
[1641420398672,0.00113685,3556.5,3556.1,1.144e-05]
[1641420398876,1.41665271,3556.7,3556.1,1.144e-05]
[1641420398877,0.00170527,3556.6,3556.1,1.144e-05]
[1641420399275,0.00113685,3556.5,3556.1,1.144e-05]
[1641420399474,0.00113685,3556.5,3556.2,0.58146978]
[1641420399676,0.70336,3556.3,3556.2,0.58146978]
[1641420401479,0.00113685,3556.5,3556.2,0.58146978]
[1641420402624,0.00113685,3556.5,3556.2,1.73208275]
[1641420405227,0.00113685,3556.5,3556.3,0.00094345]
[1641420406033,3.685e-05,3556.5,3556.3,0.00094345]
[1641420406283,3.19340282,3558.2,3556.5,7.85]
[1641420406479,3.19340282,3558.2,3557.9,0.01266452]
[1641420406480,5.6222,3558.1,3557.9,0.01266452]
[1641420406679,6.25400376,3558.7,3558.1,6.85]
[1641420406883,5.37740376,3558.7,3558.1,7.45]
[1641420407079,7.8175047,3559.2,3558.3,7.1]
[1641420407282,7.8175047,3559.2,3558.6,0.01255983]
[1641420407482,0.00284212,3559.1,3558.6,0.01255983]
[1641420407884,0.0022737,3559.0,3558.6,0.01255983]
[1641420408082,0.0022737,3559.0,3558.4,1.00113684]
[1641420408083,0.0022737,3559.0,3558.4,0.00113684]
[1641420408282,0.00170527,3558.9,3558.5,1.10642214]
[1641420408484,0.00170527,3558.9,3558.8,6.43622168]
[1641420408684,6.27753382,3560.2,3559.4,1.39906077]
[1641420408884,4.00274628,3560.6,3559.4,1.39906077]
[1641420409086,0.00852635,3560.1,3559.4,1.39906077]
[1641420409485,0.18646139,3560.7,3559.4,1.39906077]
[1641420409486,0.00795793,3560.0,3559.4,1.39906077]
[1641420409925,0.00738951,3559.9,3559.5,0.48603145]
[1641420410227,0.00682108,3559.8,3559.5,0.48603145]
[1641420410624,0.00625266,3559.7,3559.5,0.48603145]
[1641420411026,0.00568424,3559.6,3559.5,0.48603145]
[1641420411224,0.00568424,3559.6,3559.5,1.18838145]
[1641420412032,0.00568424,3559.6,3559.5,9.03838145]
[1641420412431,0.00568424,3559.6,3559.5,27.93701838]
[1641420412632,8.424e-05,3559.6,3559.5,29.51001838]
[1641420412832,8.424e-05,3559.6,3559.5,29.61688693]
[1641420413035,6.17,3561.7,3559.5,26.95825]
[1641420413232,6.17,3561.7,3560.4,0.70218]
[1641420413432,0.01136847,3561.6,3560.4,0.70218]
[1641420413971,0.01080004,3561.5,3561.4,0.51271299]
[1641420416478,0.01080004,3561.5,3561.4,0.50971897]
[1641420424940,0.01080004,3561.5,3561.4,7.00971897]
[1641420426726,0.01080004,3561.5,3561.4,9.35971897]
[1641420427130,0.01080004,3561.5,3561.4,8.35971897]
[1641420427932,0.67459714,3562.5,3562.4,1.40999088]
[1641420428134,0.67459714,3562.5,3562.4,2.21649088]
[1641420428333,4.7190394,3563.4,3562.4,2.21649088]
[1641420428533,4.7190394,3563.5,3562.4,0.8065]
[1641420428776,4.7190394,3563.5,3561.4,2.31916098]
[1641420428777,2.32045493,3563.3,3561.4,0.50971897]
[1641420428979,0.71225163,3563.3,3562.8,0.54136295]
[1641420429176,5.6228632,3563.2,3562.8,0.54136295]
[1641420429378,5.9228632,3563.2,3562.8,0.54136295]
[1641420429577,0.00909478,3563.1,3562.8,0.54136295]
[1641420429776,5.6132,3563.0,3562.8,0.54136295]
[1641420429979,5.62172636,3563.0,3562.8,0.54136295]
[1641420430183,5.05795793,3562.9,3562.8,0.54136295]
[1641420430380,10.67115793,3562.9,3562.8,0.54136295]
[1641420430981,5.62115793,3562.9,3562.8,0.54136295]
[1641420433529,5.62115793,3562.9,3561.9,1.03791602]
[1641420433929,0.00738951,3562.8,3561.9,1.03791602]
[1641420434328,0.00682108,3562.7,3561.9,1.03791602]
[1641420434731,0.00625266,3562.6,3562.0,0.47381756]
[1641420434931,0.00625266,3562.6,3561.3,1.4291311]
[1641420434932,1.03015,3562.5,3561.3,1.4291311]
[1641420435130,1.4044212,3562.4,3561.3,1.4291311]
[1641420435329,1.44361306,3562.4,3561.3,1.4291311]
[1641420435535,0.00454739,3562.3,3561.3,1.4291311]
[1641420435835,0.00397897,3562.2,3561.3,1.4291311]
[1641420436033,0.00397897,3562.2,3561.4,0.58296333]
[1641420436271,0.00341054,3562.1,3561.4,1.74282896]
[1641420436671,1.43849725,3562.4,3561.4,1.74282896]
[1641420436672,0.70506212,3562.0,3561.4,1.74282896]
[1641420436873,1.44107155,3562.0,3561.4,1.74282896]
[1641420437075,0.0022737,3561.9,3561.4,1.74282896]
[1641420437474,0.00170527,3561.8,3561.4,1.74282896]
[1641420437877,0.00113685,3561.7,3561.4,9.24282896]
[1641420438079,0.00113685,3561.7,3561.5,1.0]
[1641420438278,4.7190394,3562.5,3561.5,1.0]
[1641420438479,4.7190394,3562.5,3562.4,1.19487258]
[1641420438878,4.7190394,3562.5,3561.5,1.0]
[1641420439081,0.03327421,3562.9,3561.5,1.0]
[1641420439379,1.43648354,3563.0,3562.9,0.43296583]
[1641420440126,1.44034275,3563.0,3562.9,0.43296583]
[1641420440529,1.4038967,3563.0,3562.9,0.43296583]
[1641420440730,0.70194,3563.0,3562.9,0.43296583]
[1641420440927,1.40389,3563.2,3562.9,0.43296583]
[1641420441333,0.00909478,3563.1,3562.9,0.43296583]
[1641420441731,0.00852636,3563.0,3562.9,0.43296583]
[1641420445511,7.24511846,3563.0,3562.9,0.43296583]
[1641420446511,3.56045756,3563.0,3562.9,0.43296583]
[1641420446710,0.71045756,3563.0,3562.9,0.43296583]
[1641420448830,0.74626145,3563.0,3562.9,0.43296583]
[1641420449329,0.71045756,3563.0,3562.9,0.43296583]
[1641420449630,4.09351645,3563.0,3562.9,0.43296583]
[1641420449831,4.06045756,3563.0,3562.9,0.43296583]
[1641420450031,4.09158213,3563.0,3562.9,0.43296583]
[1641420450228,4.09158213,3563.0,3562.9,0.44389638]
[1641420450431,4.09543008,3563.0,3562.9,0.44389638]
[1641420450638,4.06045756,3563.0,3562.9,0.44389638]
[1641420451036,4.09073993,3563.0,3562.9,0.44389638]
[1641420451788,0.71045756,3563.0,3562.9,0.44389638]
[1641420451998,0.00852636,3563.0,3562.9,1.13089638]
[1641420453196,0.00852636,3563.0,3562.9,2.33084548]
[1641420453597,0.00852636,3563.0,3562.9,0.44389638]
[1641420454593,0.00852636,3563.0,3562.9,1.85764787]
[1641420456334,0.00852636,3563.0,3562.9,0.44389638]
[1641420456533,7.05852636,3563.0,3562.9,0.44389638]
[1641420456735,7.76049686,3563.0,3562.9,0.44389638]
[1641420457037,7.7971619,3563.0,3562.9,0.44389638]
[1641420458234,0.7471619,3563.0,3562.9,0.44389638]
[1641420459086,0.7471619,3563.0,3562.9,0.01093055]
[1641420459486,3.2471619,3563.0,3562.9,0.01093055]
[1641420460587,4.2471619,3563.0,3562.9,0.01093055]
[1641420460887,4.2471619,3563.0,3562.5,1.42763441]
[1641420460888,0.70214,3562.8,3562.5,1.42763441]
[1641420461089,1.0301462,3562.7,3562.5,1.42763441]
[1641420461293,1.07663717,3562.7,3562.5,1.42763441]
[1641420461487,3.60625266,3562.6,3561.2,5.95326619]
[1641420461689,5.01058266,3562.6,3562.2,0.53791741]
[1641420461887,0.70217,3562.4,3561.3,3.6667]
[1641420462088,0.70218,3562.1,3562.0,0.59214706]
[1641420462525,0.70559054,3562.1,3561.7,0.44898829]
[1641420462925,0.00284212,3562.0,3561.7,0.44898829]
[1641420463126,0.70499212,3562.0,3561.7,0.44898829]
[1641420463325,0.0022737,3561.9,3561.7,0.44898829]
[1641420463726,0.00170527,3561.8,3561.7,0.44898829]
[1641420464327,0.00170527,3561.8,3561.7,6.59898829]
[1641420465628,0.00170527,3561.8,3561.7,22.83898829]
[1641420466030,0.00170527,3561.8,3561.7,24.43898829]
[1641420466284,0.00170527,3561.8,3561.7,7.19898829]
[1641420466487,0.00170527,3561.8,3561.7,6.59898829]
[1641420468291,0.00170527,3561.8,3561.7,8.29898829]
[1641420468494,0.00170527,3561.8,3561.7,25.85105945]
[1641420468791,0.00170527,3561.8,3561.7,0.44898829]
[1641420469592,0.00170527,3561.8,3560.8,4.76576619]
[1641420469790,0.70212,3561.5,3560.8,21.00576619]
[1641420470025,0.70212,3561.5,3560.9,0.00341054]
[1641420470226,0.70212,3561.5,3561.1,1.25485957]
[1641420470628,0.70212,3561.5,3561.2,0.00170527]
[1641420470824,0.70212,3561.5,3561.3,0.57580258]
[1641420471725,0.00113685,3561.7,3561.3,0.57580258]
[1641420471927,0.00113685,3561.7,3561.3,1.98832423]
[1641420472531,0.00113685,3561.7,3561.3,3.99031423]
[1641420472732,0.00113685,3561.7,3561.4,17.64379]
[1641420473134,0.00113685,3561.7,3561.5,1.0]
[1641420473334,0.00113685,3561.7,3561.6,16.24]
[1641420474380,0.00013685,3561.7,3561.6,16.24]
[1641420474577,0.00013685,3561.7,3561.6,17.24]
[1641420474777,0.00013685,3561.7,3561.6,18.65252165]
[1641420474977,1.40377,3562.8,3561.8,16.24]
[1641420475179,1.40377,3562.8,3562.1,0.7018]
[1641420475377,1.40377,3562.8,3562.7,1.1761901]
[1641420475777,1.41002266,3562.8,3562.7,1.1761901]
[1641420475978,1.41002266,3562.8,3562.2,16.24]
[1641420476179,1.41002266,3562.8,3561.6,1.41252165]
[1641420476380,0.03214095,3562.9,3561.6,1.41252165]
[1641420476381,1.40403,3562.4,3561.6,1.41252165]
[1641420476579,0.70201,3562.2,3561.8,1.41252165]
[1641420476782,0.73344449,3562.2,3561.8,1.41252165]
[1641420476978,0.00227369,3562.1,3561.8,1.41252165]
[1641420477183,0.00227369,3562.1,3561.6,1.33682586]
[1641420477425,0.00170527,3562.0,3561.6,1.33682586]
[1641420477628,0.00170527,3562.0,3561.7,0.43071138]
[1641420477826,0.73639092,3562.5,3561.7,0.43071138]
[1641420477827,0.00113685,3561.9,3561.7,0.43071138]
[1641420478229,0.73639092,3562.5,3561.7,0.43071138]
[1641420478230,0.00397896,3562.4,3561.7,0.43071138]
[1641420478629,0.00341054,3562.3,3561.6,1.33682586]
[1641420478829,0.00341054,3562.3,3562.2,0.57374148]
[1641420479030,0.73639092,3562.5,3562.2,0.57374148]
[1641420479539,0.00397896,3562.4,3562.2,0.57374148]
[1641420479930,0.00341054,3562.3,3562.2,0.57374148]
[1641420486237,0.03143741,3562.7,3562.2,1.83171584]
[1641420486446,1.43926748,3562.9,3562.2,1.83171584]
[1641420486640,0.00170527,3562.6,3562.2,1.83171584]
[1641420487041,0.73730748,3562.9,3562.2,1.83171584]
[1641420487042,0.00113685,3562.5,3562.2,1.83171584]
[1641420487445,0.00284212,3562.8,3562.2,1.83171584]
[1641420487841,0.00227369,3562.7,3562.2,1.83171584]
[1641420488242,0.00284212,3562.8,3562.2,1.83171584]
[1641420488671,0.00227369,3562.7,3562.2,1.83171584]
[1641420489072,0.00341054,3562.9,3562.2,1.83171584]
[1641420489473,0.00284212,3562.8,3562.3,0.56476902]
[1641420489875,0.00227369,3562.7,3562.3,0.56476902]
[1641420490273,6.17341054,3562.9,3562.3,0.56476902]
[1641420490680,0.00284212,3562.8,3562.3,0.56476902]
[1641420491181,0.00227369,3562.7,3562.4,16.24]
[1641420491581,4.212e-05,3562.8,3562.6,16.24]
[1641420491781,6.17,3563.7,3562.7,7.86295075]
[1641420492083,6.17,3563.7,3563.0,16.24]
[1641420492084,0.00454739,3563.6,3563.0,16.24]
[1641420492284,0.00454739,3563.6,3563.3,0.70149]
[1641420492531,6.17,3563.7,3563.3,0.70149]
[1641420492532,0.00397896,3563.5,3563.3,0.70149]
[1641420492934,0.00341054,3563.4,3563.3,0.70149]
[1641420493133,0.00341054,3563.4,3563.3,5.45149]
[1641420493332,4.74686522,3564.6,3563.4,6.15]
[1641420493635,4.74686522,3564.6,3563.9,16.24]
[1641420494034,0.7137971,3564.7,3564.0,1.0]
[1641420494434,0.00682108,3564.6,3564.2,16.24]
[1641420494636,0.00682108,3564.6,3564.3,0.60357195]
[1641420494933,0.00625266,3564.5,3564.3,16.84357195]
[1641420495338,0.00568423,3564.4,3564.3,16.84357195]
[1641420495536,0.00568423,3564.4,3564.3,17.84357195]
[1641420496376,0.00568423,3564.4,3564.3,17.04357195]
[1641420497380,0.00568423,3564.4,3564.3,17.5545866]
[1641420498280,0.00568423,3564.4,3564.3,18.1545866]
[1641420500326,0.7137971,3564.7,3564.3,18.1545866]
[1641420500327,9.71e-05,3564.7,3564.5,0.7011]
[1641420500528,9.71e-05,3564.7,3564.6,11.23075767]
[1641420500728,6.17,3566.0,3564.8,10.4999029]
[1641420501025,1.60372692,3567.0,3564.8,10.4999029]
[1641420501026,0.00852636,3565.9,3565.0,16.04357195]
[1641420501232,0.00852636,3565.9,3565.8,1.16358157]
[1641420501427,4.74686522,3566.6,3565.8,1.16358157]
[1641420501826,0.0119369,3566.5,3565.9,0.4278506]
[1641420502028,0.0119369,3566.5,3565.9,0.7278506]
[1641420502232,0.62516557,3566.8,3565.9,0.7278506]
[1641420502432,0.62516557,3566.8,3566.0,16.04584564]
[1641420502631,0.00170527,3566.7,3566.1,1.0]
[1641420502832,0.00170527,3566.7,3566.2,16.04357195]
[1641420503035,0.00113685,3566.6,3566.4,1.39440405]
[1641420503232,0.00113685,3566.6,3566.5,4.50374614]
[1641420503433,0.00113685,3566.6,3566.5,0.50174614]
[1641420503882,0.00113685,3566.6,3566.5,16.54531809]
[1641420506382,0.00113685,3566.6,3566.5,0.50174614]
[1641420506582,0.00113685,3566.6,3566.2,0.00113684]
[1641420506885,0.00113685,3566.6,3565.8,0.00341054]
[1641420507729,0.00113685,3566.6,3566.2,0.57098773]
[1641420508735,0.00113685,3566.6,3566.1,1.01191879]
[1641420509138,0.00113685,3566.6,3566.2,0.00113684]
[1641420510940,0.0034251,3566.6,3566.2,0.00113684]
[1641420515430,0.0034251,3566.6,3566.5,3.96228095]
[1641420515827,0.0034251,3566.6,3566.2,0.00113684]
[1641420516031,0.0034251,3566.6,3566.2,0.70210684]
[1641420516732,0.0034251,3566.6,3566.3,16.24]
[1641420517338,0.0034251,3566.6,3566.4,1.0]
[1641420517537,0.0034251,3566.6,3566.5,16.24]
[1641420519180,0.0034251,3566.6,3566.5,16.54]
[1641420519381,0.0034251,3566.6,3566.5,17.54]
[1641420519582,0.62516557,3566.8,3566.6,7.8511]
[1641420519787,6.17,3567.9,3566.7,17.95295083]
[1641420519986,6.17,3567.9,3566.8,10.828]
[1641420520185,0.00682108,3567.8,3566.9,1.0]
[1641420520384,0.00682108,3567.8,3567.0,16.568]
[1641420520583,4.74686522,3568.3,3567.0,16.568]
[1641420520584,0.00625266,3567.7,3567.6,5.99027412]
[1641420520789,0.00625266,3567.7,3567.6,22.96247412]
[1641420520989,0.00625266,3567.7,3567.6,24.29047412]
[1641420521195,0.00625266,3567.7,3567.6,0.7322]
[1641420521988,0.49365929,3568.4,3567.5,10.5]
[1641420522429,2.62063724,3568.3,3567.1,1.38717759]
[1641420522631,0.00341054,3568.3,3567.1,1.38717759]
[1641420522830,0.00284212,3568.2,3567.2,0.00284212]
[1641420523131,0.00227369,3568.1,3567.2,0.00284212]
[1641420523330,0.51045276,3567.8,3567.2,0.00284212]
[1641420523532,0.00170527,3568.0,3567.3,1.03450733]
[1641420523935,0.00113684,3567.9,3567.4,0.00170527]
[1641420526586,0.00113684,3567.9,3567.4,0.6088298]
[1641420526988,0.01200499,3568.6,3567.5,0.00113685]
[1641420527186,0.01200499,3568.6,3567.5,0.00227369]
[1641420527388,0.7137971,3568.9,3568.4,1.25126852]
[1641420527389,0.00341055,3568.5,3568.4,1.25126852]
[1641420527591,0.00341055,3568.5,3567.7,17.62717759]
[1641420527788,0.7137971,3568.9,3567.7,17.62717759]
[1641420527789,0.00511582,3568.8,3567.7,17.62717759]
[1641420527988,0.00284212,3568.4,3567.7,17.62717759]
[1641420528187,0.00454739,3568.7,3567.7,17.62717759]
[1641420528388,0.0022737,3568.3,3567.7,17.62717759]
[1641420528588,0.00397897,3568.6,3568.3,1.38717759]
[1641420528788,0.7137971,3568.9,3568.3,17.62717759]
[1641420529191,0.00511582,3568.8,3568.3,17.62717759]
[1641420529389,0.00511582,3568.8,3568.4,0.54754904]
[1641420529590,0.00454739,3568.7,3568.4,0.54754904]
[1641420530047,0.00397897,3568.6,3568.4,18.17472663]
[1641420530449,0.00341055,3568.5,3568.4,17.62717759]
[1641420530654,0.00341055,3568.5,3568.4,1.38717759]
[1641420531050,0.00341055,3568.5,3568.1,2.83888275]
[1641420531450,0.00284212,3568.4,3568.1,2.83888275]
[1641420531851,0.0022737,3568.3,3568.1,2.83888275]
[1641420532052,0.0022737,3568.3,3567.8,2.83888275]
[1641420532253,0.38574428,3568.7,3567.8,2.83888275]
[1641420532452,0.38574428,3568.7,3567.9,0.00227369]
[1641420532653,0.60124665,3568.9,3567.9,0.00227369]
[1641420532852,0.60124665,3568.9,3567.9,0.00397897]
[1641420533053,0.00113685,3568.8,3568.2,0.56545898]
[1641420533253,0.00113685,3568.8,3567.9,0.00397897]
[1641420533453,0.00113685,3568.8,3568.3,0.00170527]
[1641420533680,0.00113685,3568.8,3567.7,0.00511581]
[1641420533980,0.00113685,3568.8,3568.3,16.24]
[1641420534381,0.48181218,3568.8,3568.4,0.00113685]
[1641420534984,0.00113685,3568.8,3568.4,0.00113685]
[1641420537640,0.00113685,3568.8,3568.5,16.24]
[1641420539544,0.00113685,3568.8,3568.7,16.24]
[1641420541179,0.00113685,3568.8,3568.7,17.84]
[1641420542385,0.00113685,3568.8,3568.7,16.25274379]
[1641420542986,0.00113685,3568.8,3568.6,7.5]
[1641420543185,0.00113685,3568.8,3568.4,0.00113685]
[1641420543585,0.00113685,3568.8,3568.3,0.00170527]
[1641420545035,0.01286458,3568.4,3566.9,8.0]
[1641420545237,0.01286458,3568.4,3567.8,0.00284212]
[1641420545839,0.7008593,3568.3,3567.8,0.00284212]
[1641420546037,0.49812514,3568.2,3566.9,1.02800524]
[1641420546237,0.03126481,3568.3,3566.9,1.02800524]
[1641420546238,0.60464788,3567.4,3566.9,1.02800524]
[1641420546436,0.70096,3567.9,3567.0,0.00738951]
[1641420546638,1.20096,3568.2,3567.0,0.00738951]
[1641420546639,1.23215977,3568.2,3567.0,0.00738951]
[1641420547037,0.7009066,3568.1,3567.0,0.00738951]
[1641420547239,0.7344733,3568.1,3567.0,0.00738951]
[1641420547436,1.4353933,3568.1,3567.0,0.00738951]
[1641420548790,1.30345469,3568.0,3567.0,0.00738951]
[1641420549091,1.30345469,3568.0,3566.9,16.24]
[1641420549291,0.00511581,3567.9,3567.1,1.16541857]
[1641420549696,0.00454739,3567.8,3567.1,1.16541857]
[1641420550092,1.30345469,3568.0,3567.1,1.16541857]
[1641420550093,0.00397897,3567.7,3567.1,1.16541857]
[1641420550495,0.00341054,3567.6,3567.1,1.16541857]
[1641420550893,0.00284212,3567.5,3567.1,17.40541857]
[1641420551394,0.0022737,3567.4,3567.1,17.40541857]
[1641420551796,0.00170527,3567.3,3567.1,17.40541857]
[1641420552198,0.00113685,3567.2,3567.1,17.41633513]
[1641420553038,0.00113685,3567.2,3567.1,14.98908966]
[1641420553237,0.00113685,3567.2,3567.1,16.29560854]
[1641420553438,0.00113685,3567.2,3567.1,13.86836307]
[1641420553638,0.00113685,3567.2,3567.1,1.31743544]
[1641420553839,0.00113685,3567.2,3566.4,2.79540988]
[1641420554244,0.00113685,3567.2,3566.5,0.00284211]
[1641420554445,1.91109943,3568.0,3566.5,0.00284211]
[1641420554643,2.21109943,3568.0,3566.4,0.00454739]
[1641420554843,0.56334376,3567.4,3566.6,1.72031658]
[1641420555048,0.00170527,3567.5,3566.6,1.72031658]
[1641420555246,0.00170527,3567.5,3566.7,0.00284212]
[1641420555447,0.00113685,3567.4,3566.7,0.00284212]
[1641420555846,0.73857347,3567.6,3566.7,0.00284212]
[1641420556493,0.73857347,3567.6,3566.1,0.00625266]
[1641420557096,0.54562721,3566.7,3566.1,0.00625266]
[1641420557393,0.54562721,3566.7,3565.8,2.79540988]
[1641420557394,0.54562721,3566.7,3565.9,0.0073895]
[1641420558193,0.7011774,3566.7,3565.8,1.15784582]
[1641420558393,0.7011774,3566.7,3565.9,0.0073895]
[1641420558394,0.73335954,3566.7,3565.9,0.0073895]
[1641420559193,0.50590837,3566.6,3565.9,0.0073895]
[1641420559396,0.50590837,3566.6,3566.0,1.39870078]
[1641420559795,0.7012223,3566.4,3566.1,0.00625266]
[1641420560933,0.03218214,3566.7,3566.1,0.00625266]
[1641420561132,5.0011,3567.4,3566.6,0.56687203]
[1641420561336,6.17,3567.7,3566.6,0.56687203]
[1641420561632,0.00113685,3567.4,3567.2,1.05850321]
[1641420562030,6.17,3567.7,3567.2,1.05850321]
[1641420562031,0.00227369,3567.6,3567.2,1.05850321]
[1641420563688,0.00227369,3567.6,3567.2,1.72168569]
[1641420564792,0.00227369,3567.6,3566.8,0.70089]
[1641420565195,0.00227369,3567.6,3566.9,0.00170527]
[1641420565996,0.00227369,3567.6,3567.1,1.20967731]
[1641420566396,0.00227369,3567.6,3567.3,0.66890896]
[1641420567644,0.00227369,3567.6,3567.4,0.70077]
[1641420568043,0.00227369,3567.6,3567.3,0.66890896]
[1641420569946,0.00227369,3567.6,3567.3,1.36970896]
[1641420570550,0.00227369,3567.6,3567.1,2.60837809]
[1641420571385,0.00227369,3567.6,3567.1,1.20967731]
[1641420572183,0.00227369,3567.6,3567.1,1.13960631]
[1641420572985,0.47931748,3567.8,3567.0,1.39870078]
[1641420573186,0.47931748,3567.8,3567.2,0.00227369]
[1641420573383,0.47931748,3567.8,3567.1,0.00284211]
[1641420573586,0.47931748,3567.8,3566.7,0.70093]
[1641420573587,3.6,3567.7,3566.7,0.70093]
[1641420573786,3.6,3567.7,3566.9,1.39615132]
[1641420573787,0.01286362,3567.5,3566.9,1.39615132]
[1641420574186,2.6,3567.0,3566.9,1.39615132]
[1641420574385,0.00170527,3567.4,3566.9,1.39615132]
[1641420574589,0.00170527,3567.4,3566.9,1.39728817]
[1641420574787,3.85749988,3567.7,3566.9,1.39728817]
[1641420575034,3.85749988,3567.7,3567.0,0.0022737]
[1641420575238,0.64186378,3567.2,3567.0,0.0022737]
[1641420575439,0.64186378,3567.2,3566.4,0.00568424]
[1641420575944,0.73335588,3567.4,3566.1,0.00738951]
[1641420576139,3.53020576,3567.4,3566.1,0.00738951]
[1641420576341,2.83465171,3567.4,3566.1,1.33189148]
[1641420576539,0.00113684,3567.6,3566.1,1.33189148]
[1641420576540,2.96811079,3567.6,3566.1,1.33189148]
[1641420576740,0.73782175,3567.4,3566.2,0.00682108]
[1641420576940,0.66345344,3566.9,3566.2,0.00682108]
[1641420577140,0.7011125,3567.2,3566.2,0.00682108]
[1641420577740,0.73736874,3567.2,3566.2,0.00682108]
[1641420577943,0.73798147,3567.3,3565.8,0.00909478]
[1641420578141,0.7012144,3566.7,3565.8,0.00909478]
[1641420578341,0.74117323,3566.7,3565.8,0.00909478]
[1641420578544,0.74117323,3566.7,3565.7,0.0096632]
[1641420578780,0.03995883,3566.7,3565.7,0.0096632]
[1641420579079,3.49783,3567.2,3565.7,0.0096632]
[1641420579284,0.7012561,3566.4,3565.7,0.0096632]
[1641420579480,1.3853561,3566.4,3565.7,0.0096632]
[1641420579681,0.3,3566.3,3565.6,0.01023162]
[1641420579881,0.3,3566.3,3565.3,0.9615415]
[1641420579882,8.15,3566.3,3565.3,0.9615415]
[1641420580080,0.00341054,3566.2,3565.4,0.00113685]
[1641420580283,7.55,3566.1,3565.3,0.00117835]
[1641420580484,0.59025606,3565.5,3565.2,0.00117835]
[1641420580885,1.28605606,3565.5,3565.2,0.00117835]
[1641420581286,1.58605606,3565.5,3565.2,0.00117835]
[1641420581489,0.70149,3565.4,3565.2,0.00117835]
[1641420581685,0.57997633,3564.7,3564.4,4.66060479]
[1641420582085,0.1234,3564.8,3564.4,4.5657206]
[1641420582286,0.1234,3564.8,3563.9,1.3345505]
[1641420582535,0.00113684,3564.7,3563.9,1.3345505]
[1641420582735,0.00113684,3564.7,3564.0,0.00284212]
[1641420583136,0.00113684,3564.7,3564.5,0.99759761]
[1641420583334,0.00113684,3564.7,3564.0,0.00284212]
[1641420583736,0.00113684,3564.7,3563.9,0.00341054]
[1641420584334,0.00113684,3564.7,3564.6,1.39472121]
[1641420585135,0.00113684,3564.7,3564.0,0.68188784]
[1641420585339,0.00113684,3564.7,3563.9,0.00341054]
[1641420585540,0.00113684,3564.7,3564.6,1.20847422]
[1641420586686,0.00113684,3564.7,3563.8,0.5]
[1641420586886,0.00113684,3564.7,3563.7,1.17114739]
[1641420587086,0.00113684,3564.7,3563.9,0.70485054]
[1641420587289,0.00113684,3564.7,3563.9,0.70144]
[1641420587492,0.00113684,3564.7,3563.8,0.00397897]
[1641420587688,0.00113684,3564.7,3564.0,0.58633488]
[1641420587889,0.00113684,3564.7,3564.2,1.10680965]
[1641420588289,0.00113684,3564.7,3564.3,0.00113685]
[1641420589491,0.00113684,3564.7,3563.7,0.00454739]
[1641420590837,0.00113684,3564.7,3563.7,0.57896874]
[1641420591238,0.00113684,3564.7,3563.8,0.00397897]
[1641420591638,0.00113684,3564.7,3563.7,0.00454739]
[1641420592242,0.62800514,3564.3,3563.7,0.00454739]
[1641420593691,1.36456798,3564.3,3563.7,0.00454739]
[1641420594487,0.70176,3564.2,3563.7,0.00454739]
[1641420594685,1.00176,3564.2,3563.7,0.00454739]
[1641420594894,1.0297512,3564.1,3563.7,0.00454739]
[1641420595087,0.70188,3564.0,3563.7,0.00454739]
[1641420595288,0.328,3563.9,3563.5,0.38109784]
[1641420595485,0.62913684,3563.9,3563.8,0.00086038]
[1641420595685,2.33112684,3563.9,3563.8,0.00086038]
[1641420595888,7.25,3563.8,3563.5,0.38109784]
[1641420596287,0.7019761,3563.7,3563.5,0.38109784]
[1641420596489,0.7019761,3563.7,3562.0,2.6608539]
[1641420596490,0.70196,3563.4,3562.0,1.39472121]
[1641420596688,0.70202,3563.0,3562.0,1.39472121]
[1641420596887,0.70202,3563.0,3562.1,0.00909478]
[1641420597290,0.03907976,3563.1,3562.1,0.00909478]
[1641420597547,5.4996,3563.5,3562.4,1.100716]
[1641420597746,0.32913684,3563.9,3562.4,1.100716]
[1641420597947,0.32913684,3563.9,3562.5,0.00682108]
[1641420598348,0.00113684,3563.9,3562.5,0.00682108]
[1641420598548,0.00113684,3563.9,3563.7,0.58147758]
[1641420598752,0.00113684,3563.9,3563.8,1.11682977]
[1641420599748,0.00113684,3563.9,3563.8,1.77817861]
[1641420600349,0.00113684,3563.9,3563.8,1.11682977]
[1641420600949,0.00113684,3563.9,3563.1,5.1229]
[1641420601186,0.00113684,3563.9,3563.0,7.5]
[1641420601387,0.00113684,3563.9,3563.2,0.00284212]
[1641420601388,0.50002372,3563.9,3563.2,0.00284212]
[1641420601589,0.50002372,3563.9,3563.0,0.61302605]
[1641420601590,0.30113684,3563.9,3563.1,0.00341054]
[1641420601791,0.00113684,3563.9,3563.1,0.00341054]
[1641420602592,0.63124054,3563.9,3563.1,0.00341054]
[1641420602792,0.93124054,3563.9,3563.1,0.00341054]
[1641420603490,4.53998314,3563.9,3563.1,0.00341054]
[1641420603690,1.67114462,3563.9,3563.1,0.00341054]
[1641420603892,0.3,3563.8,3563.1,0.00341054]
[1641420604938,0.3,3563.8,3562.9,0.00454739]
[1641420606135,0.3,3563.8,3563.7,0.50126258]
[1641420608440,0.30113684,3563.9,3563.7,0.50126258]
[1641420608685,0.33552636,3565.4,3563.8,16.24]
[1641420608886,0.33552636,3565.4,3563.7,1.01362645]
[1641420609086,0.00625266,3565.0,3563.9,1.4027]
[1641420609286,0.00625266,3565.0,3564.2,0.70135]
[1641420609488,0.00568424,3564.9,3564.3,0.63698354]
[1641420609688,0.00568424,3564.9,3564.3,1.81431447]
[1641420609885,0.00511582,3564.8,3564.3,1.81431447]
[1641420610286,0.00454739,3564.7,3564.3,1.81431447]
[1641420610688,0.00397897,3564.6,3564.3,1.81431447]
[1641420611088,0.33552636,3565.4,3565.0,1.25065275]
[1641420611290,0.33552636,3565.4,3564.5,6.65131]
[1641420611491,0.00795793,3565.3,3564.5,6.65131]
[1641420611692,0.00795793,3565.3,3564.5,0.70131]